bitfinex/quotes_ETHUSD_20250622
["timestamp","ask_amount","ask_price","bid_price","bid_amount"]
[1750551437000,1.5291,2284.6,2283.3,0.55]
[1750551437200,0.05471792,2284.5,2284.4,3.06417076]
[1750551437505,1.5291,2284.6,2284.4,3.06421964]
[1750551437709,1.58382141,2284.6,2283.7,3.0652012]
[1750551437918,1.512,2285.5,2284.2,0.55]
[1750551438096,1.512,2285.9,2284.1,1.5923]
[1750551438410,30.0,2285.0,2283.7,10.0]
[1750551438612,30.0,2285.0,2283.6,1.5923]
[1750551438613,40.68,2284.9,2283.6,11.5923]
[1750551438775,10.0,2284.7,2284.2,3.06441437]
[1750551438972,4.0,2284.6,2283.8,3.06506699]
[1750551439197,10.0,2284.4,2283.6,3.06526102]
[1750551439510,31.512,2284.3,2283.1,1.5923]
[1750551439711,31.512,2284.3,2281.6,12.64680822]
[1750551439712,10.0,2283.9,2282.5,1.5923]
[1750551439870,10.0,2283.9,2282.7,3.06645521]
[1750551439871,0.55,2283.5,2282.7,3.06645521]
[1750551440074,0.55,2283.5,2282.1,3.06735024]
[1750551440075,10.0,2283.1,2282.6,3.06667413]
[1750551440271,30.0,2282.8,2281.9,0.36582786]
[1750551440470,30.0,2282.8,2282.3,3.06704449]
[1750551440471,0.05476934,2282.7,2282.3,3.06704449]
[1750551440679,0.05476934,2282.7,2282.5,3.06670288]
[1750551441106,0.05476934,2282.7,2282.2,3.06721263]
[1750551441107,30.0,2282.6,2282.2,3.06721263]
[1750551441307,14.96977075,2282.5,2281.9,0.36582786]
[1750551441491,14.915,2282.5,2282.3,3.06695153]
[1750551441818,14.915,2282.5,2282.3,3.06697051]
[1750551442001,14.915,2282.5,2282.2,3.06718676]
[1750551442178,14.915,2282.5,2281.9,0.36582786]
[1750551442511,11.512,2282.9,2281.9,0.36582786]
[1750551442512,1.512,2282.9,2282.8,3.06640967]
[1750551442717,10.0,2283.2,2282.8,3.06636875]
[1750551442886,10.73075939,2283.1,2282.8,3.06636875]
[1750551443086,0.55,2282.9,2282.4,3.0668507]
[1750551443285,0.55,2282.9,2281.7,10.0]
[1750551443286,10.55,2282.4,2281.8,3.06775139]
[1750551443484,14.96978076,2282.3,2281.1,3.06869492]
[1750551443791,14.96978076,2282.3,2281.5,3.06805585]
[1750551443792,10.60478504,2282.2,2281.5,3.06805585]
[1750551444116,30.0,2281.1,2280.6,3.0693472]
[1750551444282,30.0,2281.1,2280.0,3.07017543]
[1750551444283,10.0,2280.9,2280.0,3.07017543]
[1750551444485,10.0,2281.0,2280.4,3.06961693]
[1750551444687,10.675,2280.8,2279.9,1.6108]
[1750551444884,10.675,2280.8,2279.4,3.07085192]
[1750551444885,1.65941038,2280.7,2280.4,3.06959688]
[1750551445084,1.65941038,2280.7,2278.7,15.15267346]
[1750551445085,0.55,2280.5,2278.9,3.07161558]
[1750551445270,31.23344104,2280.6,2278.8,1.6108]
[1750551445271,0.05482414,2280.4,2279.1,3.07138782]
[1750551445471,0.05482414,2280.4,2278.8,1.6108]
[1750551445472,10.0,2280.2,2278.9,3.07165737]
[1750551445699,10.0,2280.2,2278.8,1.6108]
[1750551445700,0.05483103,2280.1,2279.9,3.07021812]
[1750551445897,10.0,2280.0,2278.8,1.6108]
[1750551446179,10.677,2280.4,2278.8,2.21975609]
[1750551446380,10.05481782,2280.3,2278.9,3.07165737]
[1750551446678,10.0,2280.3,2280.0,3.07009748]
[1750551446929,10.0,2280.3,2279.6,3.07070049]
[1750551446930,0.05482583,2280.2,2279.6,3.07070049]
[1750551447217,0.05482583,2280.2,2279.5,3.07081472]
[1750551447383,0.05482583,2280.2,2279.0,3.07143745]
[1750551447384,0.05482583,2280.2,2278.9,3.07165737]
[1750551447585,10.0,2280.3,2278.9,3.07165737]
[1750551447586,1.6046,2280.7,2280.6,3.06936771]
[1750551447920,1.5767,2281.7,2281.3,3.06840048]
[1750551448114,0.0547845,2281.6,2280.8,3.06909856]
[1750551448428,0.0547845,2281.6,2280.1,3.06999663]
[1750551448429,14.914,2281.5,2281.4,3.0682914]
[1750551448724,14.914,2281.5,2280.1,1.6395]
[1750551448876,14.914,2281.5,2279.0,13.16883272]
[1750551448877,13.06857305,2281.2,2280.5,3.06948752]
[1750551449077,30.0,2281.0,2280.7,3.06918734]
[1750551449289,12.0414,2281.4,2280.4,3.06959009]
[1750551449290,1.4914,2281.4,2280.4,3.06959009]
[1750551449507,10.0,2281.2,2280.8,3.06899358]
[1750551449819,0.05480536,2281.1,2280.0,10.0]
[1750551450016,0.05480536,2281.1,2280.8,3.06897774]
[1750551450216,30.0,2281.6,2278.7,1.40678356]
[1750551450426,1.5767,2281.7,2279.7,3.07057946]
[1750551450427,1.5767,2280.9,2279.7,3.07057946]
[1750551450582,10.0,2280.7,2279.4,1.6395]
[1750551450783,0.55,2280.3,2279.0,3.07151319]
[1750551451016,14.97083199,2280.2,2279.0,3.07151319]
[1750551451230,10.0,2280.1,2279.0,3.07152259]
[1750551451534,1.63153079,2280.0,2279.9,3.0703101]
[1750551451685,50.0,2279.9,2279.3,3.07101374]
[1750551451881,0.0548376,2279.8,2279.7,3.07057946]
[1750551452217,0.05483471,2279.8,2278.8,3.07179217]
[1750551452384,0.05483471,2279.8,2278.7,1.40678356]
[1750551452385,1.5767,2281.0,2279.8,10.0]
[1750551452581,10.72980736,2280.9,2280.1,3.0700225]
[1750551452919,10.72980736,2280.9,2279.3,1.6395]
[1750551452920,10.0,2280.8,2279.3,0.55]
[1750551453104,10.0,2280.8,2280.5,3.0695023]
[1750551453105,10.0,2280.6,2280.5,3.0695023]
[1750551453413,10.0,2280.6,2279.3,0.55]
[1750551453414,10.0,2280.6,2280.3,3.0697353]
[1750551453615,10.529,2280.8,2279.3,0.55]
[1750551453616,14.97081866,2280.5,2279.3,0.55]
[1750551453928,30.0,2280.4,2279.4,3.07098359]
[1750551454222,1.59913479,2280.3,2279.7,3.0704649]
[1750551454445,10.55,2280.2,2279.6,3.07059657]
[1750551454578,0.05483454,2280.1,2279.7,3.07054812]
[1750551454783,10.674,2280.0,2279.9,3.0703101]
[1750551454989,12.0733,2280.8,2280.7,3.06923313]
[1750551455185,12.0733,2280.8,2280.6,3.06934696]
[1750551455542,30.0,2281.7,2280.7,0.3069347]
[1750551455818,10.0,2281.4,2280.4,10.0]
[1750551455981,4.27480224,2281.3,2280.4,10.0]
[1750551456186,4.22,2281.3,2281.2,3.0685604]
[1750551456625,4.22,2281.3,2280.8,3.06908016]
[1750551456919,0.05480551,2281.2,2280.2,3.06981004]
[1750551457223,0.05480551,2281.2,2280.9,3.0689591]
[1750551457224,1.5443,2281.0,2280.9,3.0689591]
[1750551457518,10.0,2281.8,2280.6,3.06932917]
[1750551457519,1.5443,2281.7,2281.5,3.06815691]
[1750551457724,0.50802378,2283.2,2281.2,13.06846704]
[1750551457725,1.5443,2282.3,2281.2,13.06846704]
[1750551458018,1.59907219,2282.3,2281.3,3.06842589]
[1750551458197,1.59907219,2282.3,2282.2,3.06721584]
[1750551458198,11.59907219,2282.3,2282.2,3.06721584]
[1750551458386,11.5443,2282.3,2282.2,3.06721584]
[1750551458717,11.5443,2282.3,2281.6,3.06793757]
[1750551458718,11.5443,2282.3,2282.1,3.06734993]
[1750551459029,11.5443,2282.3,2282.0,3.06740523]
[1750551459228,11.5443,2282.3,2281.0,3.61871931]
[1750551459229,1.5443,2283.0,2281.7,3.0678376]
[1750551459390,4.219,2282.8,2282.6,3.06667575]
[1750551459590,14.219,2282.8,2282.7,3.066544]
[1750551459785,1.5443,2283.0,2282.7,3.066544]
[1750551459993,2.10601102,2285.9,2282.1,3.06726316]
[1750551459994,1.5443,2284.1,2282.9,4.61977788]
[1750551460189,1.5443,2284.1,2282.3,1.5536]
[1750551460190,30.05473175,2284.0,2282.3,1.5536]
[1750551460509,12.2103,2284.1,2282.0,13.06740575]
[1750551460510,10.0,2283.4,2282.0,13.06740575]
[1750551460695,10.0,2283.4,2282.5,3.06670698]
[1750551460696,10.0,2283.0,2282.5,3.06670698]
[1750551460897,30.0,2282.8,2281.4,1.5624]
[1750551461225,10.0,2282.6,2282.5,3.0668127]
[1750551461382,0.55,2283.2,2282.5,3.0668127]
[1750551461383,13.59240028,2284.3,2283.6,3.06531296]
[1750551461584,13.59240028,2284.3,2282.6,6.13335668]
[1750551461585,14.881,2284.0,2283.9,3.06493279]
[1750551461780,14.881,2284.0,2282.8,10.0]
[1750551462023,10.05473804,2283.9,2282.7,0.55]
[1750551462226,4.219,2284.0,2283.8,3.06506699]
[1750551462425,4.219,2284.0,2283.3,10.0]
[1750551462593,4.219,2284.0,2283.9,3.06493279]
[1750551463004,4.219,2284.0,2283.8,3.06495084]
[1750551463237,4.219,2284.0,2283.9,3.06493279]
[1750551463443,4.219,2284.0,2282.5,0.61337679]
[1750551463444,15.86335285,2284.0,2282.5,0.61337679]
[1750551463593,15.86335285,2284.0,2282.4,3.0668395]
[1750551463594,0.55,2283.4,2282.4,3.0668395]
[1750551463794,30.0,2283.0,2282.4,3.0668395]
[1750551464108,30.0,2283.0,2281.0,3.06873988]
[1750551464109,0.55,2282.7,2281.0,3.06873988]
[1750551464309,1.6273,2282.5,2281.0,3.06873988]
[1750551464630,12.2823,2282.5,2282.0,3.06735624]
[1750551464831,10.05476904,2282.4,2281.8,3.06764986]
[1750551464992,1.6273,2282.5,2281.1,1.6123]
[1750551465198,0.05476658,2282.4,2281.8,3.06771259]
[1750551465430,1.6273,2282.5,2282.4,3.06694707]
[1750551465625,1.6273,2282.5,2281.4,10.0]
[1750551465626,4.217,2282.9,2282.8,3.06640967]
[1750551466796,4.217,2282.9,2282.0,1.5165]
[1750551467048,10.0,2282.7,2281.5,1.5165]
[1750551467242,10.0,2282.7,2279.8,2.12712104]
[1750551467243,41.65,2282.5,2281.9,3.06760964]
[1750551467423,0.05477741,2282.4,2281.3,3.06842589]
[1750551467622,0.05477741,2282.4,2282.3,3.06708145]
[1750551467823,30.0,2283.4,2282.1,13.61729191]
[1750551468140,0.05475242,2283.3,2283.1,3.06591385]
[1750551468310,1.5012,2282.6,2281.9,3.06749939]
[1750551468511,14.92077072,2282.5,2281.4,3.0682914]
[1750551468807,10.524,2282.6,2282.5,3.0668127]
[1750551469145,4.217,2283.1,2283.0,3.06614104]
[1750551469361,14.864,2283.1,2282.5,3.06671227]
[1750551469518,14.864,2283.1,2282.2,3.06721584]
[1750551469519,4.217,2283.1,2282.2,3.06721584]
[1750551469721,4.217,2283.1,2283.0,3.06614104]
[1750551470151,10.524,2283.6,2283.5,3.06546967]
[1750551470542,10.524,2283.6,2282.1,3.06735024]
[1750551470856,10.524,2283.6,2283.0,3.06610276]
[1750551470857,10.0,2283.4,2283.0,3.06610276]
[1750551471011,0.05475216,2283.3,2283.0,3.06603988]
[1750551471211,10.646,2283.5,2282.5,3.0668127]
[1750551471447,10.524,2285.0,2284.1,3.064624]
[1750551471631,10.524,2285.0,2283.6,3.06528968]
[1750551471632,40.0,2284.8,2283.7,0.55]
[1750551471812,0.05471151,2284.7,2282.9,1.6069]
[1750551472023,10.69871151,2284.7,2283.5,0.55]
[1750551472358,0.05472381,2284.6,2284.5,3.06412781]
[1750551472665,0.05472381,2284.6,2283.7,3.0652012]
[1750551472666,0.0547175,2284.6,2283.7,3.0652012]
[1750551472836,13.0776,2285.0,2283.7,0.30652012]
[1750551473036,0.05471424,2284.9,2283.8,3.06506699]
[1750551473264,0.05471424,2284.9,2284.4,3.06415384]
[1750551473563,0.05471424,2284.9,2283.7,1.603]
[1750551473564,1.6664,2285.6,2284.1,0.55]
[1750551473723,1.6664,2285.6,2283.8,10.0]
[1750551473724,0.05470227,2285.5,2285.4,3.06292115]
[1750551474222,4.216,2285.7,2285.6,3.06265313]
[1750551474618,0.05468779,2286.0,2285.9,3.06225119]
[1750551474847,0.05468455,2286.0,2285.7,3.06238984]
[1750551475029,10.05468455,2286.0,2285.8,3.06238516]
[1750551475244,10.05468455,2286.0,2285.7,3.06238984]
[1750551475245,10.0,2286.0,2284.6,3.06386343]
[1750551475458,2.21884,2286.0,2285.3,3.06298031]
[1750551475663,3.0634243,2285.1,2284.4,3.06423839]
[1750551475851,10.55,2284.7,2283.1,1.603]
[1750551476049,10.55,2284.7,2283.2,3.06587245]
[1750551476050,14.90072644,2284.6,2283.2,3.06587245]
[1750551476248,14.846,2284.6,2283.4,3.06560392]
[1750551476436,10.0,2284.5,2284.1,3.06455183]
[1750551476641,0.05472684,2284.4,2283.1,4.66892563]
[1750551476936,1.6664,2284.1,2282.7,3.066544]
[1750551477154,12.2974,2284.1,2283.8,3.06496284]
[1750551477349,12.2974,2284.1,2283.5,3.06535623]
[1750551477653,0.05473105,2284.0,2283.2,3.06587245]
[1750551477969,10.05473105,2284.0,2282.9,3.06627535]
[1750551478158,10.0,2284.0,2283.7,3.06517591]
[1750551478335,0.05473726,2283.9,2283.7,3.06517591]
[1750551478546,0.05473726,2283.9,2282.6,3.06667834]
[1750551478874,1.6014,2283.5,2282.0,1.6489]
[1750551479075,10.0,2283.3,2282.2,3.06721584]
[1750551479376,0.05475549,2283.2,2282.2,3.06721584]
[1750551479590,0.05475549,2283.2,2282.5,3.06669394]
[1750551479591,0.55,2283.1,2282.5,3.06669394]
[1750551479742,10.0,2283.3,2281.5,3.06815691]
[1750551479743,0.55,2282.9,2281.5,3.06815691]
[1750551480098,0.05477207,2282.8,2281.7,3.06788797]
[1750551480306,0.05474907,2283.4,2283.0,3.0661301]
[1750551480447,10.05474907,2283.4,2283.0,3.0661301]
[1750551480788,0.55,2283.2,2281.8,3.06775352]
[1750551480966,0.55,2283.2,2281.6,0.54914186]
[1750551480967,0.05476605,2283.2,2281.6,0.54914186]
[1750551481143,10.0,2282.7,2281.2,1.6489]
[1750551481345,1.6014,2282.4,2282.3,3.06708145]
[1750551481547,1.6014,2282.4,2280.5,10.0]
[1750551481548,1.65616744,2282.9,2282.8,3.06640967]
[1750551481850,1.65616744,2282.9,2281.2,1.6489]
[1750551481851,0.55,2282.8,2281.2,1.6489]
[1750551482084,3.06542815,2283.6,2280.4,4.215]
[1750551482085,0.0547778,2282.7,2281.8,1.6489]
[1750551482376,1.6014,2283.0,2282.9,3.06627535]
[1750551482593,30.0,2282.9,2281.8,1.6489]
[1750551482897,1.5188,2282.5,2281.0,1.6029]
[1750551483039,1.5188,2282.5,2280.4,0.43617402]
[1750551483040,20.518,2282.4,2280.6,1.6029]
[1750551483383,10.0,2282.2,2280.6,1.6029]
[1750551483579,10.0,2282.2,2282.1,3.06735024]
[1750551483744,10.518,2282.4,2281.3,10.0]
[1750551484075,10.518,2282.4,2281.2,0.55]
[1750551484273,0.05477222,2282.3,2282.2,3.06721584]
[1750551484572,0.05477222,2282.3,2281.3,3.06842589]
[1750551484573,0.05477222,2282.3,2282.1,3.06732467]
[1750551484779,0.05477222,2282.3,2281.2,10.55]
[1750551484780,0.55,2282.2,2280.6,1.6029]
[1750551484979,10.55,2281.8,2280.4,3.0696369]
[1750551485178,10.55,2281.8,2281.7,3.06788797]
[1750551485179,4.184,2281.8,2281.7,3.06788797]
[1750551485880,4.23878138,2281.8,2281.7,3.06788797]
[1750551486081,11.649,2282.6,2281.6,3.06802244]
[1750551486283,11.649,2282.6,2282.3,6.1341629]
[1750551486284,1.649,2282.6,2282.3,6.1341629]
[1750551486576,4.184,2282.9,2282.3,6.1341629]
[1750551486577,4.184,2282.9,2282.8,3.06640967]
[1750551486878,4.184,2282.9,2282.1,3.0672173]
[1750551486879,4.23875706,2282.9,2282.0,10.0]
[1750551487092,10.0,2282.6,2281.2,1.6332]
[1750551487295,0.55,2282.1,2280.7,1.6332]
[1750551487467,14.23878903,2282.0,2281.9,3.06761908]
[1750551487667,1.649,2282.9,2280.8,4.184]
[1750551487977,0.05477314,2283.4,2283.2,3.06587245]
[1750551488185,2.71884,2286.0,2282.2,1.6332]
[1750551488186,30.0,2284.1,2282.3,3.06702296]
[1750551488357,30.0,2283.7,2282.3,3.06708145]
[1750551488557,40.0,2283.5,2283.0,3.06603931]
[1750551488761,0.05475532,2283.4,2282.4,6.13389414]
[1750551488965,0.05475532,2283.4,2282.3,10.0]
[1750551489171,0.05475532,2283.4,2282.3,3.06708145]
[1750551489372,2.12193085,2283.4,2283.1,3.06600542]
[1750551489568,1.649,2283.8,2282.3,3.06708145]
[1750551489569,1.649,2283.8,2283.3,3.06573818]
[1750551489793,30.0,2283.6,2282.4,3.06694707]
[1750551489996,0.05475223,2283.5,2283.0,3.06602119]
[1750551490159,1.649,2283.8,2282.2,1.6332]
[1750551490357,30.0,2283.6,2283.3,3.06564329]
[1750551490716,20.615,2283.7,2283.6,3.06533543]
[1750551490873,20.615,2283.7,2282.0,0.55]
[1750551490874,3.17037387,2283.6,2282.0,0.55]
[1750551491076,0.0547498,2283.5,2283.4,3.06560392]
[1750551491317,0.6047498,2283.5,2282.3,3.06708145]
[1750551491463,0.55,2283.2,2281.9,3.06761908]
[1750551491800,0.55,2282.6,2281.5,3.06815691]
[1750551492100,10.55,2282.4,2282.2,3.06709655]
[1750551492299,0.05477759,2282.3,2282.2,3.06709655]
[1750551492457,1.649,2282.9,2281.2,11.6332]
[1750551492458,0.55,2282.7,2281.8,3.06766655]
[1750551492659,0.05477307,2282.6,2282.5,3.0668127]
[1750551492957,12.72,2282.6,2280.7,1.6332]
[1750551493161,12.72,2282.6,2279.5,4.184]
[1750551493162,0.55,2282.0,2280.2,1.6332]
[1750551493383,1.649,2281.5,2280.3,3.06977152]
[1750551493597,0.05479824,2281.4,2281.3,3.06842589]
[1750551493812,3.06730982,2282.2,2281.4,3.0682914]
[1750551493813,4.185,2282.2,2281.4,3.0682914]
[1750551493964,4.23978866,2282.2,2282.1,3.06735024]
[1750551494594,4.23978866,2282.2,2281.5,3.06804908]
[1750551494595,0.55,2281.9,2281.5,3.06804908]
[1750551494797,1.649,2281.7,2280.6,3.06930551]
[1750551494997,0.05479608,2281.6,2281.5,3.06814863]
[1750551495398,0.05479608,2281.6,2281.1,3.06865239]
[1750551495399,10.0,2281.5,2281.1,3.06869288]
[1750551495597,0.05479859,2281.4,2281.3,3.06842589]
[1750551495815,0.05479859,2281.4,2281.1,3.0686115]
[1750551496008,14.185,2281.3,2281.2,3.06847158]
[1750551496359,10.0,2281.2,2280.1,1.6332]
[1750551496592,2.199,2281.7,2279.6,3.07070526]
[1750551496593,1.649,2281.7,2281.6,3.06802244]
[1750551497068,12.00508366,2283.3,2281.6,3.06802244]
[1750551497069,10.609,2282.9,2282.5,3.0668127]
[1750551497267,4.186,2283.1,2282.6,3.06667834]
[1750551497268,0.29107492,2282.8,2282.6,3.06667834]
[1750551497478,0.29107492,2282.8,2282.7,3.066544]
[1750551497885,10.608,2283.1,2281.9,13.06750868]
[1750551498205,10.608,2283.1,2282.9,3.06618144]
[1750551498609,10.0,2282.9,2282.4,3.06682547]
[1750551498784,30.0,2282.8,2282.5,3.0668127]
[1750551499118,11.158,2283.1,2281.0,1.558]
[1750551499119,2.1468,2282.5,2281.0,1.558]
[1750551499320,2.1468,2282.5,2281.0,4.62676342]
[1750551499321,0.55,2282.3,2281.0,4.62676342]
[1750551499488,0.05478663,2282.2,2282.1,3.06735024]
[1750551499701,1.5968,2282.5,2282.4,3.06694707]
[1750551499900,5.38394092,2285.3,2282.8,3.06640967]
[1750551499901,5.7818,2283.0,2282.8,3.06640967]
[1750551500242,0.05476709,2283.5,2283.4,3.06560392]
[1750551500390,0.05474281,2283.5,2283.3,3.0656278]
[1750551500704,0.05474281,2283.5,2282.0,10.55]
[1750551500888,10.05474281,2283.5,2282.2,3.06721584]
[1750551501084,30.55,2283.3,2282.1,3.06735024]
[1750551501285,10.603,2283.4,2280.8,1.558]
[1750551501286,0.55,2282.5,2280.8,1.558]
[1750551501599,10.55,2281.8,2281.3,3.06832508]
[1750551501796,11.5968,2281.5,2280.2,3.06979841]
[1750551502023,10.0,2281.3,2280.9,3.0688662]
[1750551502226,0.05480275,2281.2,2281.1,3.06869492]
[1750551502384,22.1978,2281.5,2281.4,3.0682914]
[1750551502588,10.0,2281.4,2281.3,3.06839065]
[1750551502788,12.1978,2281.5,2281.2,3.06848195]
[1750551502789,12.1978,2281.5,2281.4,3.0682914]
[1750551503221,1.6105,2282.4,2281.5,3.06815691]
[1750551503421,1.6105,2282.4,2281.6,3.06797574]
[1750551503422,0.05477391,2282.3,2281.6,3.06797574]
[1750551503726,0.05477391,2282.3,2281.0,1.5716]
[1750551503899,10.0,2282.0,2280.7,3.06923313]
[1750551504105,20.65478853,2281.9,2281.8,3.0676615]
[1750551504300,10.55,2281.8,2280.7,3.06923313]
[1750551504500,0.05479397,2281.7,2281.6,3.06802244]
[1750551504702,1.6105,2282.4,2280.7,6.13846626]
[1750551505003,1.6105,2282.4,2281.4,1.5716]
[1750551505205,1.6105,2282.4,2281.5,3.06815691]
[1750551505419,30.55,2282.2,2281.0,4.64042946]
[1750551505629,0.05478727,2282.1,2281.7,3.06778393]
[1750551505926,0.55,2281.8,2281.4,3.0681909]
[1750551506113,10.0,2281.6,2281.5,3.06815691]
[1750551506630,4.186,2281.7,2280.5,3.0695023]
[1750551506837,4.186,2281.7,2281.3,3.06830583]
[1750551506838,10.0547953,2281.6,2281.3,3.06830583]
[1750551507043,10.0547953,2281.6,2280.2,0.30697984]
[1750551507044,40.55,2281.4,2279.5,1.5716]
[1750551507192,12.1912951,2281.5,2279.1,3.07138782]
[1750551507193,0.55,2280.6,2279.1,3.07138782]
[1750551507395,0.05482474,2280.5,2280.3,3.06972751]
[1750551507708,0.05482474,2280.5,2278.5,10.82391621]
[1750551507709,0.55,2279.9,2279.4,3.07094906]
[1750551507896,30.0,2279.7,2279.4,3.07095981]
[1750551508092,1.51,2279.4,2278.3,0.2210571]
[1750551508311,10.594,2279.3,2279.2,3.07125307]
[1750551508549,1.56485579,2279.4,2279.2,3.07125307]
[1750551508550,1.51,2279.4,2279.2,3.07125307]
[1750551508793,1.51,2280.7,2279.4,1.556]
[1750551509101,1.51,2281.1,2281.0,3.06882946]
[1750551509336,4.187,2281.6,2280.6,3.06936771]
[1750551509337,1.51,2281.5,2280.6,3.06936771]
[1750551509644,11.5648015,2281.5,2281.2,3.06846323]
[1750551509850,30.0,2281.2,2280.0,3.07017543]
[1750551510008,0.05480932,2281.1,2280.2,3.06990614]
[1750551510198,0.05480403,2281.2,2281.1,3.06856461]
[1750551510398,10.594,2281.4,2280.2,3.06990614]
[1750551510628,10.594,2281.4,2279.3,3.07101007]
[1750551510629,10.0,2281.1,2279.3,3.07101007]
[1750551510850,30.0,2280.3,2279.0,1.556]
[1750551511034,1.51,2279.9,2279.7,3.07055573]
[1750551511222,1.56483517,2279.9,2278.8,10.0]
[1750551511407,1.56483517,2279.9,2279.8,3.07044477]
[1750551511608,22.628,2280.4,2279.3,3.07107175]
[1750551511810,0.05482595,2280.3,2280.2,3.06990614]
[1750551512142,22.628,2280.4,2279.5,3.07084887]
[1750551512352,22.628,2280.4,2280.2,3.06990614]
[1750551512353,0.05482448,2280.3,2280.2,3.06990614]
[1750551512511,12.038,2280.4,2280.3,3.06977152]
[1750551512712,1.51,2280.8,2280.6,3.06936771]
[1750551512910,1.51,2280.8,2280.0,3.07004529]
[1750551512911,10.0,2280.6,2280.0,3.07010299]
[1750551513159,10.0,2280.6,2279.3,10.0]
[1750551513160,10.6428264,2280.5,2280.1,3.06994269]
[1750551513306,10.6428264,2280.5,2279.3,10.0]
[1750551513307,10.588,2280.5,2279.4,3.07098359]
[1750551513512,14.716,2281.4,2280.5,3.06937173]
[1750551513711,10.0,2281.2,2281.0,3.06873296]
[1750551513943,1.51,2281.3,2281.2,3.0685604]
[1750551514130,4.187,2281.4,2281.3,3.06842589]
[1750551514813,4.187,2281.4,2280.6,13.06930623]
[1750551514814,14.187,2281.4,2280.2,3.06990614]
[1750551515152,40.0,2281.2,2280.2,10.0]
[1750551515337,10.55,2281.0,2280.7,3.06917285]
[1750551515654,10.585,2281.0,2280.8,3.06909856]
[1750551515852,0.55,2281.5,2280.2,3.06978757]
[1750551515853,1.51,2282.1,2280.6,11.556]
[1750551516053,1.51,2282.1,2281.9,3.06761908]
[1750551516370,0.05478632,2282.3,2281.2,3.0685604]
[1750551516371,4.154,2282.5,2282.2,3.06721584]
[1750551516512,4.20877111,2282.5,2281.4,3.0682914]
[1750551516960,14.20877111,2282.5,2282.4,3.06694707]
[1750551517191,14.154,2282.5,2281.5,1.556]
[1750551517352,3.06748818,2282.0,2280.5,1.556]
[1750551517556,10.0,2281.8,2280.5,1.556]
[1750551517896,5.7618,2282.5,2281.4,4.63652969]
[1750551518098,10.05477407,2282.4,2281.4,1.5683]
[1750551518442,10.05477407,2282.4,2280.2,8.32016955]
[1750551518443,30.0,2281.4,2280.2,8.32016955]
[1750551518687,1.6088,2281.5,2281.4,3.0682914]
[1750551518688,22.1868,2281.5,2281.4,3.0682914]
[1750551518887,10.0,2281.4,2281.3,3.0683403]
[1750551519190,10.0,2281.4,2281.2,3.06846472]
[1750551519386,10.0,2281.4,2280.5,3.06946741]
[1750551519387,12.1868,2281.5,2281.3,3.06842589]
[1750551519596,12.1868,2281.5,2281.4,3.0682914]
[1750551519776,10.578,2281.5,2281.4,3.0682914]
[1750551519978,1.6088,2281.9,2280.8,3.06909856]
[1750551520158,1.6088,2281.9,2281.8,3.06775352]
[1750551520694,1.6088,2282.4,2282.0,3.06748466]
[1750551520993,1.21398703,2283.5,2283.4,3.06560392]
[1750551521177,0.05474007,2283.9,2282.9,3.06627535]
[1750551521491,40.0,2283.8,2282.4,10.0]
[1750551521661,40.0,2283.3,2282.0,10.0]
[1750551521987,14.78075955,2283.2,2283.1,3.06600674]
[1750551522219,1.6088,2283.4,2283.3,3.06573818]
[1750551522496,0.05474325,2283.6,2283.5,3.06546967]
[1750551522659,40.0,2283.5,2282.8,3.06636598]
[1750551522993,0.05474325,2283.6,2283.0,3.06602402]
[1750551522994,0.05474772,2283.4,2283.0,3.06602402]
[1750551523176,11.47797433,2283.6,2283.3,3.06573818]
[1750551523378,4.153,2283.8,2283.7,3.0652012]
[1750551523690,3.06344353,2285.1,2284.0,1.5594]
[1750551523691,0.43073453,2285.1,2284.0,1.5594]
[1750551523893,0.05470682,2285.0,2284.0,11.5594]
[1750551524069,11.68097798,2285.1,2284.9,3.0635914]
[1750551524070,0.43073453,2285.1,2284.9,3.0635914]
[1750551524265,0.43073453,2285.1,2285.0,3.06345733]
[1750551524593,10.0,2284.3,2283.2,1.5594]
[1750551524796,10.0,2283.9,2282.4,3.06694707]
[1750551525091,11.5047,2284.1,2282.3,1.5594]
[1750551525092,0.55,2283.6,2282.3,1.5594]
[1750551525294,2.0547,2283.4,2282.3,1.5594]
[1750551525450,10.55,2283.0,2281.9,3.06761908]
[1750551525651,0.05477068,2282.9,2282.7,3.06644064]
[1750551525886,0.05477068,2282.9,2281.8,1.5594]
[1750551525887,10.563,2282.8,2281.8,1.5594]
[1750551526107,10.61777232,2282.7,2282.4,3.06685444]
[1750551526275,10.563,2282.7,2282.5,3.06678723]
[1750551526475,10.05476669,2282.6,2281.9,0.36582786]
[1750551526681,10.0,2282.6,2282.5,3.0668127]
[1750551526875,10.0,2282.6,2282.3,3.06695503]
[1750551527103,10.0,2282.6,2281.9,3.43337334]
[1750551527104,0.05476778,2282.5,2282.4,3.06694707]
[1750551527310,31.67556967,2282.5,2282.4,0.36574772]
[1750551527473,12.1708,2282.5,2282.4,0.36574772]
[1750551527673,42.1708,2282.5,2282.4,0.36574772]
[1750551527970,10.525,2282.9,2282.4,0.36574772]
[1750551528181,0.05476691,2282.8,2282.5,3.06669413]
[1750551528381,30.55,2282.7,2282.4,0.36574772]
[1750551528711,12.1687436,2282.8,2280.5,1.5578]
[1750551528712,10.55,2282.3,2280.5,1.5578]
[1750551528920,40.0,2281.8,2280.3,3.06977152]
[1750551529208,30.0,2281.4,2280.9,3.06896277]
[1750551529369,20.61080401,2281.3,2281.0,3.06870637]
[1750551529571,20.556,2281.3,2280.9,3.06895766]
[1750551529809,20.556,2281.3,2281.0,3.06882602]
[1750551530016,10.0,2281.1,2279.6,1.5578]
[1750551530175,21.02404755,2281.3,2278.4,0.5]
[1750551530176,10.0,2280.6,2280.2,3.06981264]
[1750551530507,11.02404755,2281.3,2278.7,1.5578]
[1750551530508,1.6165,2280.3,2278.7,1.5578]